fUSD/lending_fUSD_20241022
["ID","MTS","AMOUNT","RATE_DAILY","PERIOD"]
[340636740,1729573847109,-207.0,0.0005272,30]
[340636741,1729573847118,-210.0,0.0005272,30]
[340636742,1729573847128,-626.12403466,0.00052896,120]
[340636743,1729573847137,-800.0,0.00052896,120]
[340636744,1729573847147,-924.0,0.00052959,30]
[340636745,1729573847157,-715.9,0.00053164,2]
[340636746,1729573847166,-2100.0,0.0005317,120]
[340636747,1729573847176,-600.0,0.0005317,120]
[340636748,1729573847186,-800.0,0.0005317,120]
[340636749,1729573847195,-158.7705686,0.00053315,120]
[340636750,1729573847206,-800.0,0.00053444,120]
[340636751,1729573847215,-2100.0,0.00053718,120]
[340636752,1729573847224,-600.0,0.00053718,120]
[340636753,1729573847233,-600.0,0.00053879,40]
[340636754,1729573847243,-800.0,0.00053992,120]
[340636755,1729573847256,-158.7705686,0.00054027,120]
[340636756,1729573847266,-207.0,0.000542,30]
[340636757,1729573847275,-207.0,0.000542,30]
[340636758,1729573847284,-210.0,0.000542,30]
[340636759,1729573847295,-2100.0,0.00054266,120]
[340636760,1729573847304,-600.0,0.00054266,120]
[340636761,1729573847314,-800.0,0.0005454,120]
[340636762,1729573847324,-500.0,0.00054794,120]
[340636763,1729573847334,-500.0,0.00054794,120]
[340636764,1729573847343,-500.0,0.00054794,120]
[340636765,1729573847353,-150.0,0.00054795,120]
[340636766,1729573847363,-150.0,0.00054795,120]
[340636767,1729573847374,-150.0,0.00054795,120]
[340636768,1729573847384,-150.0,0.00054795,120]
[340636769,1729573847393,-150.0,0.00054795,120]
[340636770,1729573847402,-150.90370818,0.00054795,120]
[340636771,1729573847412,-150.0,0.00054795,120]
[340636772,1729573847422,-150.15221048,0.00054795,120]
[340636773,1729573847431,-150.235949,0.00054795,120]
[340636774,1729573847440,-150.15400127,0.00054795,120]
[340636775,1729573847449,-150.0,0.00054795,120]
[340636776,1729573847459,-150.04141869,0.00054795,120]
[340636777,1729573847468,-150.45604662,0.00054795,120]
[340636778,1729573847478,-150.0426694,0.00054795,120]
[340636779,1729573847487,-150.11389267,0.00054795,120]
[340636780,1729573847497,-151.18784013,0.00054795,120]
[340636781,1729573847507,-500.0,0.00054795,120]
[340636782,1729573847516,-500.0,0.00054795,120]
[340636783,1729573847526,-802.0,0.00054795,120]
[340636784,1729573847535,-500.0,0.00054795,120]
[340636785,1729573847548,-500.0,0.00054795,120]
[340636786,1729573847558,-151.0,0.00054795,30]
[340636787,1729573847568,-715.44763945,0.00054814,120]
[340636788,1729573847578,-600.0,0.00054814,120]
[340636789,1729573847588,-1419.09210924,0.00054854,120]
[340636790,1729573847598,-1419.09210924,0.00054861,120]
[340636791,1729573847607,-282.42558697,0.00054866,120]
[340636792,1729573847616,-1419.09210924,0.00054972,120]
[340636793,1729573847626,-282.42558697,0.0005499,120]
[340636794,1729573847733,-340.171516,0.00055,30]
[340636795,1729573847745,-800.0,0.00055088,120]
[340636796,1729573847755,-155.53,0.0005509,120]
[340636797,1729573847765,-535.8,0.00055247,30]
[340636798,1729573847774,-150.0,0.00055345,120]
[340636799,1729573847783,-705.82813205,0.00055362,120]
[340636800,1729573847793,-280.0,0.000554,120]
[340636801,1729573847802,-150.0,0.00055437,120]
[340636802,1729573847812,-47690.0,0.000555,120]
[340636803,1729573847821,-340.05,0.00055616,120]
[340636804,1729573847830,-800.0,0.00055636,120]
[340636805,1729573847839,-211.0,0.0005568,30]
[340636806,1729573847848,-207.0,0.0005568,120]
[340636807,1729573847857,-207.0,0.0005568,120]
[340636808,1729573847866,-210.0,0.0005568,30]
[340636809,1729573847875,-924.0,0.00055746,120]
[340636810,1729573847885,-150.0,0.00055758,120]
[340636811,1729573847894,-150.0,0.00055896,120]
[340636812,1729573847903,-157.81,0.00055969,2]
[340636813,1729573847913,-535.8,0.00055979,30]
[340636814,1729573847923,-535.8,0.00055979,30]
[340636815,1729573847932,-535.8,0.00055979,30]
[340636816,1729573847942,-535.8,0.00055979,30]
[340636817,1729573847951,-535.8,0.00055979,30]
[340636818,1729573847962,-535.8,0.00055979,30]
[340636819,1729573847971,-535.8,0.00055979,30]
[340636820,1729573847980,-535.8,0.00055979,30]
[340636821,1729573847990,-1070.92,0.00055979,30]
[340636822,1729573847999,-535.8,0.00055979,30]
[340636823,1729573848008,-535.8,0.00055979,30]
[340636824,1729573848017,-535.8,0.00055979,30]
[340636825,1729573848027,-535.8,0.00055979,30]
[340636826,1729573848037,-535.8,0.00055979,30]
[340636827,1729573848046,-535.8,0.00055979,30]
[340636828,1729573848055,-535.8,0.00055979,30]
[340636829,1729573848065,-23073.54807839,0.00055994,120]
[340636830,1729573848074,-200.0,0.00056,120]
[340636831,1729573848084,-200.0,0.00056,120]
[340636832,1729573848095,-1278.74824654,0.0005603,120]
[340636833,1729573848104,-150.0,0.0005608,120]
[340636834,1729573848114,-800.0,0.00056184,120]
[340636835,1729573848123,-150.0,0.00056447,120]
[340636836,1729573848133,-26549.88143829,0.000566,2]
[340636837,1729573848143,-150.0,0.00056722,120]
[340636838,1729573848153,-150.0,0.00056722,120]
[340636839,1729573848162,-800.0,0.00056732,120]
[340636840,1729573848172,-535.8,0.00056801,30]
[340636841,1729573848181,-154.97,0.00056801,30]
[340636842,1729573848191,-535.8,0.00056801,30]
[340636843,1729573848201,-607.52434655,0.00056987,120]
[340636844,1729573848210,-150.0,0.00056998,120]
[340636845,1729573848219,-200.0,0.00057,120]
[340636846,1729573848229,-338.09123582,0.00057,120]
[340636847,1729573848238,-15000.0,0.00057,30]
[340636848,1729573848251,-364.3877804,0.00057,120]
[340636849,1729573848261,-1242.86308129,0.00057,120]
[340636850,1729573848270,-211.0,0.0005717,30]
[340636851,1729573848280,-207.0,0.0005717,120]
[340636852,1729573848290,-210.0,0.0005717,30]
[340636853,1729573848300,-207.0,0.0005717,120]
[340636854,1729573848310,-202.0,0.0005717,30]
[340636855,1729573848319,-210.0,0.0005717,30]
[340636856,1729573848332,-208.0,0.0005717,120]
[340636857,1729573848342,-800.0,0.0005728,120]
[340636858,1729573848352,-529.02841893,0.00057334,120]
[340636859,1729573848362,-150.0,0.00057365,120]
[340636860,1729573848371,-1711.1276163,0.00057495,2]
[340636861,1729573848381,-18496.1775347,0.00057495,2]
[340636862,1729573848390,-296.4437903,0.00057495,2]
[340636863,1729573848400,-4277.38,0.00057533,120]
[340636864,1729573848411,-4277.38,0.00057533,120]
[340636865,1729573848421,-4277.38,0.00057533,120]
[340636866,1729573848431,-4277.38,0.00057533,120]
[340636867,1729573848441,-4277.48299066,0.00057533,120]
[340636868,1729573848450,-500.0,0.00057534,120]
[340636869,1729573848461,-500.0,0.00057534,120]
[340636870,1729573848471,-500.0,0.00057534,120]
[340636871,1729573848481,-490.06079441,0.00057534,120]
[340636872,1729573848491,-500.0,0.00057534,120]
[340636873,1729573848501,-500.0,0.00057534,120]
[340636874,1729573848511,-500.0,0.00057534,120]
[340636875,1729573848521,-500.0,0.00057534,120]
[340636876,1729573848531,-500.0,0.00057534,120]
[340636877,1729573848540,-457.16402041,0.00057534,120]
[340636878,1729573848550,-500.0,0.00057534,120]
[340636879,1729573848560,-500.0,0.00057534,120]
[340636880,1729573848569,-191.33158536,0.00057534,120]
[340636881,1729573848579,-500.0,0.00057534,120]
[340636882,1729573848589,-163.78701953,0.00057534,120]
[340636883,1729573848599,-500.0,0.00057534,120]
[340636884,1729573848609,-500.0,0.00057534,120]
[340636885,1729573848619,-500.0,0.00057534,120]
[340636886,1729573848629,-500.0,0.00057534,120]
[340636887,1729573848639,-500.0,0.00057534,120]
[340636888,1729573848650,-500.0,0.00057534,120]
[340636889,1729573848659,-500.0,0.00057534,120]
[340636890,1729573848669,-500.0,0.00057534,120]
[340636891,1729573848679,-500.0,0.00057534,120]
[340636892,1729573848689,-500.0,0.00057534,120]
[340636893,1729573848698,-500.0,0.00057534,120]
[340636894,1729573848711,-500.0,0.00057534,120]
[340636895,1729573848721,-500.0,0.00057534,120]
[340636896,1729573848731,-500.0,0.00057534,120]
[340636897,1729573848741,-500.0,0.00057534,120]
[340636898,1729573848751,-541.46401906,0.00057534,120]
[340636899,1729573848761,-500.0,0.00057534,120]
[340636900,1729573848771,-510.21028731,0.00057534,120]
[340636901,1729573848781,-500.0,0.00057534,120]
[340636902,1729573848790,-500.0,0.00057534,120]
[340636903,1729573848800,-500.0,0.00057534,120]
[340636904,1729573848809,-500.0,0.00057534,120]
[340636905,1729573848819,-500.0,0.00057534,120]
[340636906,1729573848828,-500.0,0.00057534,120]
[340636907,1729573848838,-500.0,0.00057534,120]
[340636908,1729573848848,-500.0,0.00057534,120]
[340636909,1729573848857,-500.0,0.00057534,120]
[340636910,1729573848867,-410.79740099,0.00057534,120]
[340636911,1729573848876,-222.43627683,0.00057534,120]
[340636912,1729573848886,-500.0,0.00057534,120]
[340636913,1729573848896,-500.0,0.00057534,120]
[340636914,1729573848906,-509.53181359,0.00057534,120]
[340636915,1729573848916,-500.0,0.00057534,120]
[340636916,1729573848926,-500.0,0.00057534,120]
[340636917,1729573848935,-509.90549742,0.00057534,120]
[340636918,1729573848945,-500.0,0.00057534,120]
[340636919,1729573848957,-500.0,0.00057534,120]
[340636920,1729573848967,-500.0,0.00057534,120]
[340636921,1729573848976,-278.01064203,0.00057534,120]
[340636922,1729573848986,-500.0,0.00057534,120]
[340636923,1729573848995,-500.0,0.00057534,120]
[340636924,1729573849006,-500.0,0.00057534,120]
[340636925,1729573849015,-500.0,0.00057534,120]
[340636926,1729573849024,-500.0,0.00057534,120]
[340636927,1729573849034,-500.0,0.00057534,120]
[340636928,1729573849044,-527.9194079,0.00057534,120]
[340636929,1729573849054,-515.10005606,0.00057534,120]
[340636930,1729573849064,-500.0,0.00057534,120]
[340636931,1729573849074,-262.42367185,0.00057534,120]
[340636932,1729573849084,-500.0,0.00057534,120]
[340636933,1729573849094,-509.53431723,0.00057534,120]
[340636934,1729573849105,-552.47361095,0.00057534,120]
[340636935,1729573849115,-500.0,0.00057534,120]
[340636936,1729573849125,-500.0,0.00057534,120]
[340636937,1729573849135,-532.71033818,0.00057534,120]
[340636938,1729573849145,-500.0,0.00057534,120]
[340636939,1729573849154,-500.0,0.00057534,120]
[340636940,1729573849164,-223.37951325,0.00057534,120]
[340636941,1729573849174,-500.0,0.00057534,120]
[340636942,1729573849183,-500.0,0.00057534,120]
[340636943,1729573849192,-500.0,0.00057534,120]
[340636944,1729573849202,-235.89491406,0.00057534,120]
[340636945,1729573849214,-500.0,0.00057534,120]
[340636946,1729573849224,-509.96755603,0.00057534,120]
[340636947,1729573849234,-500.0,0.00057534,120]
[340636948,1729573849244,-500.0,0.00057534,120]
[340636949,1729573849257,-500.0,0.00057534,120]
[340636950,1729573849266,-427.51252786,0.00057534,120]
[340636951,1729573849276,-500.0,0.00057534,30]
[340636952,1729573849285,-500.0,0.00057534,30]
[340636953,1729573849295,-405.64491164,0.00057534,30]
[340636954,1729573849304,-500.0,0.00057534,120]
[340636955,1729573849314,-500.0,0.00057534,120]
[340636956,1729573849324,-500.0,0.00057534,120]
[340636957,1729573849334,-500.0,0.00057534,120]
[340636958,1729573849344,-449.61568349,0.00057534,120]
[340636959,1729573849354,-500.0,0.00057534,120]
[340636960,1729573849365,-500.0,0.00057534,120]
[340636961,1729573849374,-500.0,0.00057534,120]
[340636962,1729573849384,-500.0,0.00057534,120]
[340636963,1729573849394,-500.0,0.00057534,120]
[340636964,1729573849403,-500.0,0.00057534,120]
[340636965,1729573849413,-500.0,0.00057534,120]
[340636966,1729573849422,-500.0,0.00057534,120]
[340636967,1729573849432,-500.0,0.00057534,120]
[340636968,1729573849442,-301.01740067,0.00057534,120]
[340636969,1729573849452,-503.39067124,0.00057534,120]
[340636970,1729573849464,-500.0,0.00057534,120]
[340636971,1729573849474,-500.0,0.00057534,120]
[340636972,1729573849483,-500.0,0.00057534,120]
[340636973,1729573849493,-241.88279532,0.00057534,120]
[340636974,1729573849503,-500.0,0.00057534,120]
[340636975,1729573849513,-500.0,0.00057534,120]
[340636976,1729573849523,-500.0,0.00057534,120]
[340636977,1729573849532,-479.72344021,0.00057534,120]
[340636978,1729573849542,-500.0,0.00057534,120]
[340636979,1729573849552,-500.0,0.00057534,120]
[340636980,1729573849562,-469.52468663,0.00057534,120]
[340636981,1729573849571,-433.1326337,0.00057534,120]
[340636982,1729573849581,-500.0,0.00057534,120]
[340636983,1729573849590,-356.35265424,0.00057534,120]
[340636984,1729573849600,-500.0,0.00057534,120]
[340636985,1729573849610,-360.30830788,0.00057534,120]
[340636986,1729573849620,-500.0,0.00057534,120]
[340636987,1729573849631,-500.0,0.00057534,120]
[340636988,1729573849641,-500.0,0.00057534,120]
[340636989,1729573849651,-512.55118589,0.00057534,120]
[340636990,1729573849660,-500.0,0.00057534,120]
[340636991,1729573849670,-500.0,0.00057534,120]
[340636992,1729573849679,-500.0,0.00057534,120]
[340636993,1729573849689,-526.87353634,0.00057534,120]
[340636994,1729573849698,-500.0,0.00057534,120]
[340636995,1729573849708,-515.88199938,0.00057534,120]
[340636996,1729573849718,-500.0,0.00057534,120]
[340636997,1729573849728,-500.0,0.00057534,120]
[340636998,1729573849737,-217.06981946,0.00057534,120]
[340636999,1729573849747,-464.87823253,0.00057534,120]
[340637000,1729573849757,-500.0,0.00057534,120]
[340637001,1729573849767,-500.0,0.00057534,120]
[340637002,1729573849776,-543.7161467,0.00057534,120]
[340637003,1729573849786,-500.0,0.00057534,120]
[340637004,1729573849795,-500.0,0.00057534,120]
[340637005,1729573849806,-483.6907796,0.00057534,120]
[340637006,1729573849815,-332.45992869,0.00057534,120]
[340637007,1729573849824,-500.0,0.00057534,120]
[340637008,1729573849834,-282.08496973,0.00057534,120]
[340637009,1729573849843,-500.0,0.00057534,120]
[340637010,1729573849933,-500.0,0.00057534,120]
[340637011,1729573849943,-500.0,0.00057534,120]
[340637012,1729573849952,-500.0,0.00057534,120]
[340637013,1729573849963,-500.0,0.00057534,120]
[340637014,1729573849973,-500.0,0.00057534,120]
[340637015,1729573849982,-438.61906689,0.00057534,120]
[340637016,1729573849993,-210.21462415,0.00057534,120]
[340637017,1729573850002,-500.0,0.00057534,120]
[340637018,1729573850013,-500.0,0.00057534,120]
[340637019,1729573850022,-500.0,0.00057534,120]
[340637020,1729573850032,-500.0,0.00057534,120]
[340637021,1729573850042,-500.0,0.00057534,120]
[340637022,1729573850052,-500.0,0.00057534,120]
[340637023,1729573850062,-536.66056342,0.00057534,120]
[340637024,1729573850072,-500.0,0.00057534,120]
[340637025,1729573850081,-528.24904581,0.00057534,120]
[340637026,1729573850090,-500.0,0.00057534,120]
[340637027,1729573850100,-500.0,0.00057534,120]
[340637028,1729573850110,-514.81691716,0.00057534,120]
[340637029,1729573850119,-500.0,0.00057534,120]
[340637030,1729573850128,-408.76625757,0.00057534,120]
[340637031,1729573850138,-500.0,0.00057534,120]
[340637032,1729573850147,-500.0,0.00057534,120]
[340637033,1729573850157,-500.0,0.00057534,120]
[340637034,1729573850166,-308.69371641,0.00057534,120]
[340637035,1729573850176,-500.0,0.00057534,120]
[340637036,1729573850186,-441.55229011,0.00057534,120]
[340637037,1729573850195,-500.0,0.00057534,120]
[340637038,1729573850207,-500.0,0.00057534,120]
[340637039,1729573850217,-538.70291381,0.00057534,120]
[340637040,1729573850226,-514.50094895,0.00057534,120]
[340637041,1729573850236,-368.48420988,0.00057534,120]
[340637042,1729573850246,-506.96083419,0.00057534,120]
[340637043,1729573850258,-552.83446059,0.00057534,120]
[340637044,1729573850268,-507.70158636,0.00057534,120]
[340637045,1729573850278,-512.498851,0.00057534,120]
[340637046,1729573850287,-531.08997499,0.00057534,120]
[340637047,1729573850299,-567.65617942,0.00057534,120]
[340637048,1729573850309,-533.65305079,0.00057534,120]
[340637049,1729573850318,-544.29657718,0.00057534,120]
[340637050,1729573850330,-500.0,0.00057534,120]
[340637051,1729573850340,-500.0,0.00057534,120]
[340637052,1729573850350,-203.11073506,0.00057534,120]
[340637053,1729573850360,-500.0,0.00057534,120]
[340637054,1729573850369,-500.0,0.00057534,120]
[340637055,1729573850379,-500.0,0.00057534,120]
[340637056,1729573850388,-227.46321282,0.00057534,120]
[340637057,1729573850397,-514.50747315,0.00057534,60]
[340637058,1729573850408,-518.50870936,0.00057534,120]
[340637059,1729573850418,-507.64629973,0.00057534,120]
[340637060,1729573850428,-500.0,0.00057534,120]
[340637061,1729573850437,-500.0,0.00057534,120]
[340637062,1729573850447,-500.0,0.00057534,120]
[340637063,1729573850459,-500.0,0.00057534,120]
[340637064,1729573850470,-500.0,0.00057534,120]
[340637065,1729573850480,-500.0,0.00057534,120]
[340637066,1729573850490,-500.0,0.00057534,120]
[340637067,1729573850499,-500.0,0.00057534,120]
[340637068,1729573850509,-500.0,0.00057534,120]
[340637069,1729573850518,-500.0,0.00057534,120]
[340637070,1729573850527,-500.0,0.00057534,120]
[340637071,1729573850539,-500.0,0.00057534,120]
[340637072,1729573850549,-500.0,0.00057534,120]
[340637073,1729573850559,-500.0,0.00057534,120]
[340637074,1729573850568,-581.86368991,0.00057534,120]
[340637075,1729573850577,-500.0,0.00057534,120]
[340637076,1729573850588,-500.0,0.00057534,120]
[340637077,1729573850597,-500.0,0.00057534,120]
[340637078,1729573850607,-500.0,0.00057534,120]
[340637079,1729573850617,-500.0,0.00057534,120]
[340637080,1729573850628,-500.0,0.00057534,120]
[340637081,1729573850640,-500.0,0.00057534,120]
[340637082,1729573850649,-500.0,0.00057534,120]
[340637083,1729573850659,-500.0,0.00057534,120]
[340637084,1729573850669,-500.0,0.00057534,120]
[340637085,1729573850678,-500.0,0.00057534,120]
[340637086,1729573850688,-500.0,0.00057534,120]
[340637087,1729573850698,-643.12709145,0.00057534,120]
[340637088,1729573850710,-500.0,0.00057534,120]
[340637089,1729573850720,-500.0,0.00057534,120]
[340637090,1729573850729,-500.0,0.00057534,120]
[340637091,1729573850738,-500.0,0.00057534,120]
[340637092,1729573850748,-500.0,0.00057534,120]
[340637093,1729573850757,-540.66818371,0.00057534,120]
[340637094,1729573850766,-500.0,0.00057534,120]
[340637095,1729573850776,-500.0,0.00057534,120]
[340637096,1729573850786,-500.0,0.00057534,120]
[340637097,1729573850795,-500.0,0.00057534,120]
[340637098,1729573850804,-500.0,0.00057534,120]
[340637099,1729573850814,-500.0,0.00057534,120]
[340637100,1729573850823,-500.0,0.00057534,120]
[340637101,1729573850833,-500.0,0.00057534,120]
[340637102,1729573850842,-500.0,0.00057534,120]
[340637103,1729573850852,-500.0,0.00057534,120]
[340637104,1729573850861,-229.29799982,0.00057534,120]
[340637105,1729573850870,-500.0,0.00057534,120]
[340637106,1729573850879,-500.0,0.00057534,120]
[340637107,1729573850888,-500.0,0.00057534,120]
[340637108,1729573850897,-500.0,0.00057534,120]
[340637109,1729573850911,-500.0,0.00057534,120]
[340637110,1729573850925,-500.0,0.00057534,120]
[340637111,1729573850939,-500.0,0.00057534,120]
[340637112,1729573850953,-522.00992057,0.00057534,120]
[340637113,1729573850965,-508.10161767,0.00057534,120]
[340637114,1729573850977,-500.0,0.00057534,120]
[340637115,1729573850991,-500.0,0.00057534,120]
[340637116,1729573851003,-500.0,0.00057534,120]
[340637117,1729573851016,-500.0,0.00057534,120]
[340637118,1729573851029,-500.0,0.00057534,120]
[340637119,1729573851042,-500.0,0.00057534,120]
[340637120,1729573851054,-500.0,0.00057534,120]
[340637121,1729573851067,-500.0,0.00057534,120]
[340637122,1729573851081,-514.01336805,0.00057534,120]
[340637123,1729573851093,-500.0,0.00057534,120]
[340637124,1729573851105,-500.0,0.00057534,120]
[340637125,1729573851117,-500.0,0.00057534,120]
[340637126,1729573851129,-500.0,0.00057534,120]
[340637127,1729573851142,-507.23654375,0.00057534,120]
[340637128,1729573851155,-500.0,0.00057534,120]
[340637129,1729573851167,-500.0,0.00057534,120]
[340637130,1729573851179,-500.0,0.00057534,120]
[340637131,1729573851191,-500.0,0.00057534,120]
[340637132,1729573851201,-500.0,0.00057534,120]
[340637133,1729573851214,-269.35549786,0.00057534,120]
[340637134,1729573851226,-500.0,0.00057534,120]
[340637135,1729573851239,-548.6,0.00057534,120]
[340637136,1729573851252,-578.29269098,0.00057534,120]
[340637137,1729573851267,-500.0,0.00057534,120]
[340637138,1729573851278,-273.28582325,0.00057534,120]
[340637139,1729573851292,-500.0,0.00057534,120]
[340637140,1729573851305,-500.0,0.00057534,120]
[340637141,1729573851319,-500.0,0.00057534,120]
[340637142,1729573851331,-500.0,0.00057534,120]
[340637143,1729573851342,-500.0,0.00057534,120]
[340637144,1729573851352,-500.0,0.00057534,120]
[340637145,1729573851363,-2521.71,0.00057534,120]
[340637146,1729573851373,-500.0,0.00057534,120]
[340637147,1729573851385,-500.0,0.00057534,120]
[340637148,1729573851397,-2521.71,0.00057534,120]
[340637149,1729573851411,-500.0,0.00057534,120]
[340637150,1729573851421,-331.49399595,0.00057534,120]
[340637151,1729573851434,-2521.71,0.00057534,120]
[340637152,1729573851447,-500.0,0.00057534,120]
[340637153,1729573851458,-500.0,0.00057534,120]
[340637154,1729573851470,-2521.71,0.00057534,120]
[340637155,1729573851481,-500.0,0.00057534,120]
[340637156,1729573851492,-2521.71,0.00057534,120]
[340637157,1729573851503,-500.0,0.00057534,120]
[340637158,1729573851514,-2521.71,0.00057534,120]
[340637159,1729573851524,-500.0,0.00057534,120]
[340637160,1729573851535,-2521.71,0.00057534,120]
[340637161,1729573851546,-500.0,0.00057534,120]
[340637162,1729573851558,-2521.71,0.00057534,120]
[340637163,1729573851569,-500.0,0.00057534,120]
[340637164,1729573851580,-2521.71,0.00057534,120]
[340637165,1729573851591,-515.19810585,0.00057534,120]
[340637166,1729573851602,-2521.71,0.00057534,120]
[340637167,1729573851614,-2521.71,0.00057534,120]
[340637168,1729573851625,-2521.71,0.00057534,120]
[340637169,1729573851636,-2521.71,0.00057534,120]
[340637170,1729573851648,-2521.71,0.00057534,120]
[340637171,1729573851658,-2521.71,0.00057534,120]
[340637172,1729573851669,-2521.71,0.00057534,120]
[340637173,1729573851680,-2521.71,0.00057534,120]
[340637174,1729573851692,-2521.71,0.00057534,120]
[340637175,1729573851704,-2521.71,0.00057534,120]
[340637176,1729573851717,-2521.71,0.00057534,120]
[340637177,1729573851728,-2521.71,0.00057534,120]
[340637178,1729573851740,-2521.71,0.00057534,120]
[340637179,1729573851751,-2521.71,0.00057534,120]
[340637180,1729573851762,-2521.82970571,0.00057534,120]
[340637181,1729573851773,-500.0,0.00057534,120]
[340637182,1729573851784,-500.0,0.00057534,120]
[340637183,1729573851796,-500.0,0.00057534,120]
[340637184,1729573851807,-500.0,0.00057534,120]
[340637185,1729573851818,-500.0,0.00057534,120]
[340637186,1729573851830,-500.0,0.00057534,120]
[340637187,1729573851841,-500.0,0.00057534,120]
[340637188,1729573851854,-500.0,0.00057534,120]
[340637189,1729573851865,-500.0,0.00057534,120]
[340637190,1729573851877,-500.0,0.00057534,120]
[340637191,1729573851889,-519.15954731,0.00057534,120]
[340637192,1729573851900,-500.0,0.00057534,120]
[340637193,1729573851910,-500.0,0.00057534,120]
[340637194,1729573851922,-522.26272178,0.00057534,120]
[340637195,1729573851933,-581.68,0.00057534,120]
[340637196,1729573851944,-581.68,0.00057534,120]
[340637197,1729573851955,-581.68,0.00057534,120]
[340637198,1729573851967,-581.68,0.00057534,120]
[340637199,1729573851979,-581.68,0.00057534,120]
[340637200,1729573851990,-581.68,0.00057534,120]
[340637201,1729573852001,-581.68,0.00057534,120]
[340637202,1729573852013,-581.68,0.00057534,120]
[340637203,1729573852024,-581.68,0.00057534,120]
[340637204,1729573852036,-581.68,0.00057534,120]
[340637205,1729573852048,-581.68,0.00057534,120]
[340637206,1729573852060,-581.68,0.00057534,120]
[340637207,1729573852187,-581.68,0.00057534,120]
[340637208,1729573852200,-581.68,0.00057534,120]
[340637209,1729573852210,-581.68,0.00057534,120]
[340637210,1729573852220,-581.68,0.00057534,120]
[340637211,1729573852229,-581.68,0.00057534,120]
[340637212,1729573852239,-581.68,0.00057534,120]
[340637213,1729573852247,-581.68,0.00057534,120]
[340637214,1729573852256,-581.68,0.00057534,120]
[340637215,1729573852268,-581.68,0.00057534,120]
[340637216,1729573852277,-581.68,0.00057534,120]
[340637217,1729573852286,-581.68,0.00057534,120]
[340637218,1729573852295,-581.8807023,0.00057534,120]
[340637219,1729573852305,-500.0,0.00057534,120]
[340637220,1729573852314,-500.0,0.00057534,120]
[340637221,1729573852324,-500.0,0.00057534,120]
[340637222,1729573852333,-500.0,0.00057534,120]
[340637223,1729573852342,-500.0,0.00057534,120]
[340637224,1729573852352,-500.0,0.00057534,120]
[340637225,1729573852362,-500.0,0.00057534,120]
[340637226,1729573852371,-500.0,0.00057534,120]
[340637227,1729573852380,-500.0,0.00057534,120]
[340637228,1729573852390,-500.0,0.00057534,120]
[340637229,1729573852399,-500.0,0.00057534,120]
[340637230,1729573852408,-500.0,0.00057534,120]
[340637231,1729573852417,-500.0,0.00057534,120]
[340637232,1729573852427,-500.0,0.00057534,120]
[340637233,1729573852436,-500.0,0.00057534,120]
[340637234,1729573852446,-500.0,0.00057534,120]
[340637235,1729573852455,-500.0,0.00057534,120]
[340637236,1729573852464,-500.0,0.00057534,120]
[340637237,1729573852474,-500.0,0.00057534,120]
[340637238,1729573852483,-608.72445906,0.00057534,120]
[340637239,1729573852493,-500.0,0.00057534,120]